{"text_format":"3","workbook":"xlsx","n_sheets":3,"sheets":["Dagplanning","Gebeurtenisplanner","Tijdsintervallen"],"not_rendered":{"images":1,"defined_names":21},"read":"whole","date_system":"1900"}

{"sheet":"Dagplanning","index":0,"n_rows":75,"n_cols":13,"rows_kept":75,"merged":[[1,1,5,2],[2,12,4,12],[3,7,4,7],[5,12,7,12],[6,1,8,2],[8,12,10,12],[9,7,10,7],[10,1,10,2],[11,12,13,12],[14,12,16,12],[15,7,16,7],[17,12,19,12],[18,1,18,2],[20,12,22,12],[21,7,22,7],[23,12,25,12],[25,1,25,2],[26,7,27,7],[26,12,28,12],[29,12,31,12],[31,7,32,7],[32,12,34,12]]}
[null,"Dagplanning"]
[null,{"$f":"IFERROR(DAY(DateVal),\"\")","v":6},null,null,"Tijd",{"$f":"IFERROR(UPPER(TEXT(DATE(Rapportjaar,MonthNumber,Rapportdag),\"d mmmm jjjj\")),\"\")","v":"6 SEPTEMBER 2019"},null,"WEEKOVERZICHT",{"$nulls":3},"NOTITIES/TAKENLIJST"]
[{"$nulls":4},{"$f":"Tijdsintervallen!E3","v":"06:00:00"},{"$f":"IFERROR(INDEX(GebeurtenisPlanner[],MATCH(DATEVALUE(DateVal)&DagPlanning[[#This Row],[Tijd]],LookUpDateAndTime,0),3),\"\")","v":"Uit bed"},null,{"$f":"IFERROR(TEXT(DATEVALUE(DateVal)+1,\"dddd\"),\"\")","v":"zaterdag"},{"$f":"IFERROR(INDEX(GebeurtenisPlanner[],MATCH($H$6&\"|\"&ROW(A1),GebeurtenisPlanner[UNIEKE WAARDE (BEREKEND)],0),2),\"\")","v":"06:30:00"},{"$f":"IFERROR(INDEX(GebeurtenisPlanner[],MATCH($H$6&\"|\"&ROW(A1),GebeurtenisPlanner[UNIEKE WAARDE (BEREKEND)],0),3),\"\")","v":"Ontbijt"},null,null,"Kleding ophalen bij de stomerij"]
[{"$nulls":4},{"$f":"Tijdsintervallen!E4","v":"06:15:00"},{"$f":"IFERROR(INDEX(GebeurtenisPlanner[],MATCH(DATEVALUE(DateVal)&DagPlanning[[#This Row],[Tijd]],LookUpDateAndTime,0),3),\"\")","v":""},null,{"$f":"IFERROR(TEXT(DATEVALUE(DateVal)+1,\"d\"),\"\")","v":"7"},{"$f":"IFERROR(INDEX(GebeurtenisPlanner[],MATCH($H$6&\"|\"&ROW(A2),GebeurtenisPlanner[UNIEKE WAARDE (BEREKEND)],0),2),\"\")","v":"07:30:00"},{"$f":"IFERROR(INDEX(GebeurtenisPlanner[],MATCH($H$6&\"|\"&ROW(A2),GebeurtenisPlanner[UNIEKE WAARDE (BEREKEND)],0),3),\"\")","v":"Naar het werk"}]
[{"$nulls":4},{"$f":"Tijdsintervallen!E5","v":"06:30:00"},{"$f":"IFERROR(INDEX(GebeurtenisPlanner[],MATCH(DATEVALUE(DateVal)&DagPlanning[[#This Row],[Tijd]],LookUpDateAndTime,0),3),\"\")","v":"Douche"},null,null,{"$f":"IFERROR(INDEX(GebeurtenisPlanner[],MATCH($H$6&\"|\"&ROW(A3),GebeurtenisPlanner[UNIEKE WAARDE (BEREKEND)],0),2),\"\")","v":""},{"$f":"IFERROR(INDEX(GebeurtenisPlanner[],MATCH($H$6&\"|\"&ROW(A3),GebeurtenisPlanner[UNIEKE WAARDE (BEREKEND)],0),3),\"\")","v":""}]
[{"$nulls":4},{"$f":"Tijdsintervallen!E6","v":"06:45:00"},{"$f":"IFERROR(INDEX(GebeurtenisPlanner[],MATCH(DATEVALUE(DateVal)&DagPlanning[[#This Row],[Tijd]],LookUpDateAndTime,0),3),\"\")","v":""},null,{"$f":"IFERROR(DateVal+1,\"\")","v":"2019-09-07"},{"$f":"IFERROR(INDEX(GebeurtenisPlanner[],MATCH($H$6&\"|\"&ROW(A4),GebeurtenisPlanner[UNIEKE WAARDE (BEREKEND)],0),2),\"\")","v":""},{"$f":"IFERROR(INDEX(GebeurtenisPlanner[],MATCH($H$6&\"|\"&ROW(A4),GebeurtenisPlanner[UNIEKE WAARDE (BEREKEND)],0),3),\"\")","v":""},null,null,"Kabelbedrijf bellen"]
[null,{"$f":"IFERROR(TEXT(DateVal,\"dddd\"),\"\")","v":"vrijdag"},null,null,{"$f":"Tijdsintervallen!E7","v":"07:00:00"},{"$f":"IFERROR(INDEX(GebeurtenisPlanner[],MATCH(DATEVALUE(DateVal)&DagPlanning[[#This Row],[Tijd]],LookUpDateAndTime,0),3),\"\")","v":""},null,null,{"$f":"IFERROR(INDEX(GebeurtenisPlanner[],MATCH($H$6&\"|\"&ROW(A5),GebeurtenisPlanner[UNIEKE WAARDE (BEREKEND)],0),2),\"\")","v":""},{"$f":"IFERROR(INDEX(GebeurtenisPlanner[],MATCH($H$6&\"|\"&ROW(A5),GebeurtenisPlanner[UNIEKE WAARDE (BEREKEND)],0),3),\"\")","v":""}]
[{"$nulls":4},{"$f":"Tijdsintervallen!E8","v":"07:15:00"},{"$f":"IFERROR(INDEX(GebeurtenisPlanner[],MATCH(DATEVALUE(DateVal)&DagPlanning[[#This Row],[Tijd]],LookUpDateAndTime,0),3),\"\")","v":""},null,null,{"$f":"IFERROR(INDEX(GebeurtenisPlanner[],MATCH($H$6&\"|\"&ROW(A6),GebeurtenisPlanner[UNIEKE WAARDE (BEREKEND)],0),2),\"\")","v":""},{"$f":"IFERROR(INDEX(GebeurtenisPlanner[],MATCH($H$6&\"|\"&ROW(A6),GebeurtenisPlanner[UNIEKE WAARDE (BEREKEND)],0),3),\"\")","v":""}]
[{"$nulls":4},{"$f":"Tijdsintervallen!E9","v":"07:30:00"},{"$f":"IFERROR(INDEX(GebeurtenisPlanner[],MATCH(DATEVALUE(DateVal)&DagPlanning[[#This Row],[Tijd]],LookUpDateAndTime,0),3),\"\")","v":"Naar het werk"},null,{"$f":"IFERROR(TEXT(DATEVALUE(DateVal)+2,\"dddd\"),\"\")","v":"zondag"},{"$f":"IFERROR(INDEX(GebeurtenisPlanner[],MATCH($H$12&\"|\"&ROW(A1),GebeurtenisPlanner[UNIEKE WAARDE (BEREKEND)],0),2),\"\")","v":""},{"$f":"IFERROR(INDEX(GebeurtenisPlanner[],MATCH($H$12&\"|\"&ROW(A1),GebeurtenisPlanner[UNIEKE WAARDE (BEREKEND)],0),3),\"\")","v":""}]
[{"$nulls":4},{"$f":"Tijdsintervallen!E10","v":"07:45:00"},{"$f":"IFERROR(INDEX(GebeurtenisPlanner[],MATCH(DATEVALUE(DateVal)&DagPlanning[[#This Row],[Tijd]],LookUpDateAndTime,0),3),\"\")","v":""},null,{"$f":"IFERROR(TEXT(DATEVALUE(DateVal)+2,\"d\"),\"\")","v":"8"},{"$f":"IFERROR(INDEX(GebeurtenisPlanner[],MATCH($H$12&\"|\"&ROW(A2),GebeurtenisPlanner[UNIEKE WAARDE (BEREKEND)],0),2),\"\")","v":""},{"$f":"IFERROR(INDEX(GebeurtenisPlanner[],MATCH($H$12&\"|\"&ROW(A2),GebeurtenisPlanner[UNIEKE WAARDE (BEREKEND)],0),3),\"\")","v":""}]
[null,"PLANNING BEKIJKEN",null,null,{"$f":"Tijdsintervallen!E11","v":"08:00:00"},{"$f":"IFERROR(INDEX(GebeurtenisPlanner[],MATCH(DATEVALUE(DateVal)&DagPlanning[[#This Row],[Tijd]],LookUpDateAndTime,0),3),\"\")","v":"Begin van ploegendienst"},null,null,{"$f":"IFERROR(INDEX(GebeurtenisPlanner[],MATCH($H$12&\"|\"&ROW(A3),GebeurtenisPlanner[UNIEKE WAARDE (BEREKEND)],0),2),\"\")","v":""},{"$f":"IFERROR(INDEX(GebeurtenisPlanner[],MATCH($H$12&\"|\"&ROW(A3),GebeurtenisPlanner[UNIEKE WAARDE (BEREKEND)],0),3),\"\")","v":""}]
[{"$nulls":4},{"$f":"Tijdsintervallen!E12","v":"08:15:00"},{"$f":"IFERROR(INDEX(GebeurtenisPlanner[],MATCH(DATEVALUE(DateVal)&DagPlanning[[#This Row],[Tijd]],LookUpDateAndTime,0),3),\"\")","v":""},null,{"$f":"IFERROR(DateVal+2,\"\")","v":"2019-09-08"},{"$f":"IFERROR(INDEX(GebeurtenisPlanner[],MATCH($H$12&\"|\"&ROW(A4),GebeurtenisPlanner[UNIEKE WAARDE (BEREKEND)],0),2),\"\")","v":""},{"$f":"IFERROR(INDEX(GebeurtenisPlanner[],MATCH($H$12&\"|\"&ROW(A4),GebeurtenisPlanner[UNIEKE WAARDE (BEREKEND)],0),3),\"\")","v":""}]
[null,"Jaar",null,null,{"$f":"Tijdsintervallen!E13","v":"08:30:00"},{"$f":"IFERROR(INDEX(GebeurtenisPlanner[],MATCH(DATEVALUE(DateVal)&DagPlanning[[#This Row],[Tijd]],LookUpDateAndTime,0),3),\"\")","v":""},null,null,{"$f":"IFERROR(INDEX(GebeurtenisPlanner[],MATCH($H$12&\"|\"&ROW(A5),GebeurtenisPlanner[UNIEKE WAARDE (BEREKEND)],0),2),\"\")","v":""},{"$f":"IFERROR(INDEX(GebeurtenisPlanner[],MATCH($H$12&\"|\"&ROW(A5),GebeurtenisPlanner[UNIEKE WAARDE (BEREKEND)],0),3),\"\")","v":""}]
[{"$nulls":4},{"$f":"Tijdsintervallen!E14","v":"08:45:00"},{"$f":"IFERROR(INDEX(GebeurtenisPlanner[],MATCH(DATEVALUE(DateVal)&DagPlanning[[#This Row],[Tijd]],LookUpDateAndTime,0),3),\"\")","v":""},null,null,{"$f":"IFERROR(INDEX(GebeurtenisPlanner[],MATCH($H$12&\"|\"&ROW(A6),GebeurtenisPlanner[UNIEKE WAARDE (BEREKEND)],0),2),\"\")","v":""},{"$f":"IFERROR(INDEX(GebeurtenisPlanner[],MATCH($H$12&\"|\"&ROW(A6),GebeurtenisPlanner[UNIEKE WAARDE (BEREKEND)],0),3),\"\")","v":""}]
[null,"Maand",null,null,{"$f":"Tijdsintervallen!E15","v":"09:00:00"},{"$f":"IFERROR(INDEX(GebeurtenisPlanner[],MATCH(DATEVALUE(DateVal)&DagPlanning[[#This Row],[Tijd]],LookUpDateAndTime,0),3),\"\")","v":""},null,{"$f":"IFERROR(TEXT(DATEVALUE(DateVal)+3,\"dddd\"),\"\")","v":"maandag"},{"$f":"IFERROR(INDEX(GebeurtenisPlanner[],MATCH($H$18&\"|\"&ROW(A1),GebeurtenisPlanner[UNIEKE WAARDE (BEREKEND)],0),2),\"\")","v":""},{"$f":"IFERROR(INDEX(GebeurtenisPlanner[],MATCH($H$18&\"|\"&ROW(A1),GebeurtenisPlanner[UNIEKE WAARDE (BEREKEND)],0),3),\"\")","v":""}]
[{"$nulls":4},{"$f":"Tijdsintervallen!E16","v":"09:15:00"},{"$f":"IFERROR(INDEX(GebeurtenisPlanner[],MATCH(DATEVALUE(DateVal)&DagPlanning[[#This Row],[Tijd]],LookUpDateAndTime,0),3),\"\")","v":""},null,{"$f":"IFERROR(TEXT(DATEVALUE(DateVal)+3,\"d\"),\"\")","v":"9"},{"$f":"IFERROR(INDEX(GebeurtenisPlanner[],MATCH($H$18&\"|\"&ROW(A2),GebeurtenisPlanner[UNIEKE WAARDE (BEREKEND)],0),2),\"\")","v":""},{"$f":"IFERROR(INDEX(GebeurtenisPlanner[],MATCH($H$18&\"|\"&ROW(A2),GebeurtenisPlanner[UNIEKE WAARDE (BEREKEND)],0),3),\"\")","v":""}]
[null,"Dag",null,null,{"$f":"Tijdsintervallen!E17","v":"09:30:00"},{"$f":"IFERROR(INDEX(GebeurtenisPlanner[],MATCH(DATEVALUE(DateVal)&DagPlanning[[#This Row],[Tijd]],LookUpDateAndTime,0),3),\"\")","v":""},null,null,{"$f":"IFERROR(INDEX(GebeurtenisPlanner[],MATCH($H$18&\"|\"&ROW(A3),GebeurtenisPlanner[UNIEKE WAARDE (BEREKEND)],0),2),\"\")","v":""},{"$f":"IFERROR(INDEX(GebeurtenisPlanner[],MATCH($H$18&\"|\"&ROW(A3),GebeurtenisPlanner[UNIEKE WAARDE (BEREKEND)],0),3),\"\")","v":""}]
[{"$nulls":4},{"$f":"Tijdsintervallen!E18","v":"09:45:00"},{"$f":"IFERROR(INDEX(GebeurtenisPlanner[],MATCH(DATEVALUE(DateVal)&DagPlanning[[#This Row],[Tijd]],LookUpDateAndTime,0),3),\"\")","v":""},null,{"$f":"IFERROR(DateVal+3,\"\")","v":"2019-09-09"},{"$f":"IFERROR(INDEX(GebeurtenisPlanner[],MATCH($H$18&\"|\"&ROW(A4),GebeurtenisPlanner[UNIEKE WAARDE (BEREKEND)],0),2),\"\")","v":""},{"$f":"IFERROR(INDEX(GebeurtenisPlanner[],MATCH($H$18&\"|\"&ROW(A4),GebeurtenisPlanner[UNIEKE WAARDE (BEREKEND)],0),3),\"\")","v":""}]
[null,"PLANNING BEWERKEN",null,null,{"$f":"Tijdsintervallen!E19","v":"10:00:00"},{"$f":"IFERROR(INDEX(GebeurtenisPlanner[],MATCH(DATEVALUE(DateVal)&DagPlanning[[#This Row],[Tijd]],LookUpDateAndTime,0),3),\"\")","v":"Pauze"},null,null,{"$f":"IFERROR(INDEX(GebeurtenisPlanner[],MATCH($H$18&\"|\"&ROW(A5),GebeurtenisPlanner[UNIEKE WAARDE (BEREKEND)],0),2),\"\")","v":""},{"$f":"IFERROR(INDEX(GebeurtenisPlanner[],MATCH($H$18&\"|\"&ROW(A5),GebeurtenisPlanner[UNIEKE WAARDE (BEREKEND)],0),3),\"\")","v":""}]
[{"$nulls":4},{"$f":"Tijdsintervallen!E20","v":"10:15:00"},{"$f":"IFERROR(INDEX(GebeurtenisPlanner[],MATCH(DATEVALUE(DateVal)&DagPlanning[[#This Row],[Tijd]],LookUpDateAndTime,0),3),\"\")","v":""},null,null,{"$f":"IFERROR(INDEX(GebeurtenisPlanner[],MATCH($H$18&\"|\"&ROW(A6),GebeurtenisPlanner[UNIEKE WAARDE (BEREKEND)],0),2),\"\")","v":""},{"$f":"IFERROR(INDEX(GebeurtenisPlanner[],MATCH($H$18&\"|\"&ROW(A6),GebeurtenisPlanner[UNIEKE WAARDE (BEREKEND)],0),3),\"\")","v":""}]
[null,"Selecteer om tijdsintervallen te bewerken",null,null,{"$f":"Tijdsintervallen!E21","v":"10:30:00"},{"$f":"IFERROR(INDEX(GebeurtenisPlanner[],MATCH(DATEVALUE(DateVal)&DagPlanning[[#This Row],[Tijd]],LookUpDateAndTime,0),3),\"\")","v":""},null,{"$f":"IFERROR(TEXT(DATEVALUE(DateVal)+4,\"dddd\"),\"\")","v":"dinsdag"},{"$f":"IFERROR(INDEX(GebeurtenisPlanner[],MATCH($H$24&\"|\"&ROW(A1),GebeurtenisPlanner[UNIEKE WAARDE (BEREKEND)],0),2),\"\")","v":""},{"$f":"IFERROR(INDEX(GebeurtenisPlanner[],MATCH($H$24&\"|\"&ROW(A1),GebeurtenisPlanner[UNIEKE WAARDE (BEREKEND)],0),3),\"\")","v":""}]
[{"$nulls":4},{"$f":"Tijdsintervallen!E22","v":"10:45:00"},{"$f":"IFERROR(INDEX(GebeurtenisPlanner[],MATCH(DATEVALUE(DateVal)&DagPlanning[[#This Row],[Tijd]],LookUpDateAndTime,0),3),\"\")","v":""},null,{"$f":"IFERROR(TEXT(DATEVALUE(DateVal)+4,\"d\"),\"\")","v":"10"},{"$f":"IFERROR(INDEX(GebeurtenisPlanner[],MATCH($H$24&\"|\"&ROW(A2),GebeurtenisPlanner[UNIEKE WAARDE (BEREKEND)],0),2),\"\")","v":""},{"$f":"IFERROR(INDEX(GebeurtenisPlanner[],MATCH($H$24&\"|\"&ROW(A2),GebeurtenisPlanner[UNIEKE WAARDE (BEREKEND)],0),3),\"\")","v":""}]
[null,"Selecteer om een nieuwe gebeurtenis toe te voegen",null,null,{"$f":"Tijdsintervallen!E23","v":"11:00:00"},{"$f":"IFERROR(INDEX(GebeurtenisPlanner[],MATCH(DATEVALUE(DateVal)&DagPlanning[[#This Row],[Tijd]],LookUpDateAndTime,0),3),\"\")","v":""},null,null,{"$f":"IFERROR(INDEX(GebeurtenisPlanner[],MATCH($H$24&\"|\"&ROW(A3),GebeurtenisPlanner[UNIEKE WAARDE (BEREKEND)],0),2),\"\")","v":""},{"$f":"IFERROR(INDEX(GebeurtenisPlanner[],MATCH($H$24&\"|\"&ROW(A3),GebeurtenisPlanner[UNIEKE WAARDE (BEREKEND)],0),3),\"\")","v":""}]
[{"$nulls":4},{"$f":"Tijdsintervallen!E24","v":"11:15:00"},{"$f":"IFERROR(INDEX(GebeurtenisPlanner[],MATCH(DATEVALUE(DateVal)&DagPlanning[[#This Row],[Tijd]],LookUpDateAndTime,0),3),\"\")","v":""},null,{"$f":"IFERROR(DateVal+4,\"\")","v":"2019-09-10"},{"$f":"IFERROR(INDEX(GebeurtenisPlanner[],MATCH($H$24&\"|\"&ROW(A4),GebeurtenisPlanner[UNIEKE WAARDE (BEREKEND)],0),2),\"\")","v":""},{"$f":"IFERROR(INDEX(GebeurtenisPlanner[],MATCH($H$24&\"|\"&ROW(A4),GebeurtenisPlanner[UNIEKE WAARDE (BEREKEND)],0),3),\"\")","v":""}]
[null,"MARKEREN IN PLANNING:",null,null,{"$f":"Tijdsintervallen!E25","v":"11:30:00"},{"$f":"IFERROR(INDEX(GebeurtenisPlanner[],MATCH(DATEVALUE(DateVal)&DagPlanning[[#This Row],[Tijd]],LookUpDateAndTime,0),3),\"\")","v":""},null,null,{"$f":"IFERROR(INDEX(GebeurtenisPlanner[],MATCH($H$24&\"|\"&ROW(A5),GebeurtenisPlanner[UNIEKE WAARDE (BEREKEND)],0),2),\"\")","v":""},{"$f":"IFERROR(INDEX(GebeurtenisPlanner[],MATCH($H$24&\"|\"&ROW(A5),GebeurtenisPlanner[UNIEKE WAARDE (BEREKEND)],0),3),\"\")","v":""}]
[null,"Pauze",null,null,{"$f":"Tijdsintervallen!E26","v":"11:45:00"},{"$f":"IFERROR(INDEX(GebeurtenisPlanner[],MATCH(DATEVALUE(DateVal)&DagPlanning[[#This Row],[Tijd]],LookUpDateAndTime,0),3),\"\")","v":""},null,{"$f":"IFERROR(TEXT(DATEVALUE(DateVal)+5,\"dddd\"),\"\")","v":"woensdag"},{"$f":"IFERROR(INDEX(GebeurtenisPlanner[],MATCH($H$29&\"|\"&ROW(A1),GebeurtenisPlanner[UNIEKE WAARDE (BEREKEND)],0),2),\"\")","v":""},{"$f":"IFERROR(INDEX(GebeurtenisPlanner[],MATCH($H$29&\"|\"&ROW(A1),GebeurtenisPlanner[UNIEKE WAARDE (BEREKEND)],0),3),\"\")","v":""}]
[{"$nulls":4},{"$f":"Tijdsintervallen!E27","v":"12:00:00"},{"$f":"IFERROR(INDEX(GebeurtenisPlanner[],MATCH(DATEVALUE(DateVal)&DagPlanning[[#This Row],[Tijd]],LookUpDateAndTime,0),3),\"\")","v":"Lunch"},null,{"$f":"IFERROR(TEXT(DATEVALUE(DateVal)+5,\"d\"),\"\")","v":"11"},{"$f":"IFERROR(INDEX(GebeurtenisPlanner[],MATCH($H$29&\"|\"&ROW(A2),GebeurtenisPlanner[UNIEKE WAARDE (BEREKEND)],0),2),\"\")","v":""},{"$f":"IFERROR(INDEX(GebeurtenisPlanner[],MATCH($H$29&\"|\"&ROW(A2),GebeurtenisPlanner[UNIEKE WAARDE (BEREKEND)],0),3),\"\")","v":""}]
[{"$nulls":4},{"$f":"Tijdsintervallen!E28","v":"12:15:00"},{"$f":"IFERROR(INDEX(GebeurtenisPlanner[],MATCH(DATEVALUE(DateVal)&DagPlanning[[#This Row],[Tijd]],LookUpDateAndTime,0),3),\"\")","v":""},null,null,{"$f":"IFERROR(INDEX(GebeurtenisPlanner[],MATCH($H$29&\"|\"&ROW(A3),GebeurtenisPlanner[UNIEKE WAARDE (BEREKEND)],0),2),\"\")","v":""},{"$f":"IFERROR(INDEX(GebeurtenisPlanner[],MATCH($H$29&\"|\"&ROW(A3),GebeurtenisPlanner[UNIEKE WAARDE (BEREKEND)],0),3),\"\")","v":""}]
[{"$nulls":4},{"$f":"Tijdsintervallen!E29","v":"12:30:00"},{"$f":"IFERROR(INDEX(GebeurtenisPlanner[],MATCH(DATEVALUE(DateVal)&DagPlanning[[#This Row],[Tijd]],LookUpDateAndTime,0),3),\"\")","v":""},null,{"$f":"IFERROR(DateVal+5,\"\")","v":"2019-09-11"},{"$f":"IFERROR(INDEX(GebeurtenisPlanner[],MATCH($H$29&\"|\"&ROW(A4),GebeurtenisPlanner[UNIEKE WAARDE (BEREKEND)],0),2),\"\")","v":""},{"$f":"IFERROR(INDEX(GebeurtenisPlanner[],MATCH($H$29&\"|\"&ROW(A4),GebeurtenisPlanner[UNIEKE WAARDE (BEREKEND)],0),3),\"\")","v":""}]
[{"$nulls":4},{"$f":"Tijdsintervallen!E30","v":"12:45:00"},{"$f":"IFERROR(INDEX(GebeurtenisPlanner[],MATCH(DATEVALUE(DateVal)&DagPlanning[[#This Row],[Tijd]],LookUpDateAndTime,0),3),\"\")","v":""},null,null,{"$f":"IFERROR(INDEX(GebeurtenisPlanner[],MATCH($H$29&\"|\"&ROW(A5),GebeurtenisPlanner[UNIEKE WAARDE (BEREKEND)],0),2),\"\")","v":""},{"$f":"IFERROR(INDEX(GebeurtenisPlanner[],MATCH($H$29&\"|\"&ROW(A5),GebeurtenisPlanner[UNIEKE WAARDE (BEREKEND)],0),3),\"\")","v":""}]
[{"$nulls":4},{"$f":"Tijdsintervallen!E31","v":"13:00:00"},{"$f":"IFERROR(INDEX(GebeurtenisPlanner[],MATCH(DATEVALUE(DateVal)&DagPlanning[[#This Row],[Tijd]],LookUpDateAndTime,0),3),\"\")","v":""},null,{"$f":"IFERROR(TEXT(DATEVALUE(DateVal)+6,\"dddd\"),\"\")","v":"donderdag"},{"$f":"IFERROR(INDEX(GebeurtenisPlanner[],MATCH($H$34&\"|\"&ROW(A1),GebeurtenisPlanner[UNIEKE WAARDE (BEREKEND)],0),2),\"\")","v":""},{"$f":"IFERROR(INDEX(GebeurtenisPlanner[],MATCH($H$34&\"|\"&ROW(A1),GebeurtenisPlanner[UNIEKE WAARDE (BEREKEND)],0),3),\"\")","v":""}]
[{"$nulls":4},{"$f":"Tijdsintervallen!E32","v":"13:15:00"},{"$f":"IFERROR(INDEX(GebeurtenisPlanner[],MATCH(DATEVALUE(DateVal)&DagPlanning[[#This Row],[Tijd]],LookUpDateAndTime,0),3),\"\")","v":""},null,{"$f":"IFERROR(TEXT(DATEVALUE(DateVal)+6,\"d\"),\"\")","v":"12"},{"$f":"IFERROR(INDEX(GebeurtenisPlanner[],MATCH($H$34&\"|\"&ROW(A2),GebeurtenisPlanner[UNIEKE WAARDE (BEREKEND)],0),2),\"\")","v":""},{"$f":"IFERROR(INDEX(GebeurtenisPlanner[],MATCH($H$34&\"|\"&ROW(A2),GebeurtenisPlanner[UNIEKE WAARDE (BEREKEND)],0),3),\"\")","v":""}]
[{"$nulls":4},{"$f":"Tijdsintervallen!E33","v":"13:30:00"},{"$f":"IFERROR(INDEX(GebeurtenisPlanner[],MATCH(DATEVALUE(DateVal)&DagPlanning[[#This Row],[Tijd]],LookUpDateAndTime,0),3),\"\")","v":"Bedrijf bellen"},null,null,{"$f":"IFERROR(INDEX(GebeurtenisPlanner[],MATCH($H$34&\"|\"&ROW(A3),GebeurtenisPlanner[UNIEKE WAARDE (BEREKEND)],0),2),\"\")","v":""},{"$f":"IFERROR(INDEX(GebeurtenisPlanner[],MATCH($H$34&\"|\"&ROW(A3),GebeurtenisPlanner[UNIEKE WAARDE (BEREKEND)],0),3),\"\")","v":""}]
[{"$nulls":4},{"$f":"Tijdsintervallen!E34","v":"13:45:00"},{"$f":"IFERROR(INDEX(GebeurtenisPlanner[],MATCH(DATEVALUE(DateVal)&DagPlanning[[#This Row],[Tijd]],LookUpDateAndTime,0),3),\"\")","v":""},null,{"$f":"IFERROR(DateVal+6,\"\")","v":"2019-09-12"},{"$f":"IFERROR(INDEX(GebeurtenisPlanner[],MATCH($H$34&\"|\"&ROW(A4),GebeurtenisPlanner[UNIEKE WAARDE (BEREKEND)],0),2),\"\")","v":""},{"$f":"IFERROR(INDEX(GebeurtenisPlanner[],MATCH($H$34&\"|\"&ROW(A4),GebeurtenisPlanner[UNIEKE WAARDE (BEREKEND)],0),3),\"\")","v":""}]
[{"$nulls":4},{"$f":"Tijdsintervallen!E35","v":"14:00:00"},{"$f":"IFERROR(INDEX(GebeurtenisPlanner[],MATCH(DATEVALUE(DateVal)&DagPlanning[[#This Row],[Tijd]],LookUpDateAndTime,0),3),\"\")","v":""},null,null,{"$f":"IFERROR(INDEX(GebeurtenisPlanner[],MATCH($H$34&\"|\"&ROW(A5),GebeurtenisPlanner[UNIEKE WAARDE (BEREKEND)],0),2),\"\")","v":""},{"$f":"IFERROR(INDEX(GebeurtenisPlanner[],MATCH($H$34&\"|\"&ROW(A5),GebeurtenisPlanner[UNIEKE WAARDE (BEREKEND)],0),3),\"\")","v":""}]
[{"$nulls":4},{"$f":"Tijdsintervallen!E36","v":"14:15:00"},{"$f":"IFERROR(INDEX(GebeurtenisPlanner[],MATCH(DATEVALUE(DateVal)&DagPlanning[[#This Row],[Tijd]],LookUpDateAndTime,0),3),\"\")","v":""}]
[{"$nulls":4},{"$f":"Tijdsintervallen!E37","v":"14:30:00"},{"$f":"IFERROR(INDEX(GebeurtenisPlanner[],MATCH(DATEVALUE(DateVal)&DagPlanning[[#This Row],[Tijd]],LookUpDateAndTime,0),3),\"\")","v":""}]
[{"$nulls":4},{"$f":"Tijdsintervallen!E38","v":"14:45:00"},{"$f":"IFERROR(INDEX(GebeurtenisPlanner[],MATCH(DATEVALUE(DateVal)&DagPlanning[[#This Row],[Tijd]],LookUpDateAndTime,0),3),\"\")","v":""}]
[{"$nulls":4},{"$f":"Tijdsintervallen!E39","v":"15:00:00"},{"$f":"IFERROR(INDEX(GebeurtenisPlanner[],MATCH(DATEVALUE(DateVal)&DagPlanning[[#This Row],[Tijd]],LookUpDateAndTime,0),3),\"\")","v":"Pauze"}]
[{"$nulls":4},{"$f":"Tijdsintervallen!E40","v":"15:15:00"},{"$f":"IFERROR(INDEX(GebeurtenisPlanner[],MATCH(DATEVALUE(DateVal)&DagPlanning[[#This Row],[Tijd]],LookUpDateAndTime,0),3),\"\")","v":""}]
[{"$nulls":4},{"$f":"Tijdsintervallen!E41","v":"15:30:00"},{"$f":"IFERROR(INDEX(GebeurtenisPlanner[],MATCH(DATEVALUE(DateVal)&DagPlanning[[#This Row],[Tijd]],LookUpDateAndTime,0),3),\"\")","v":""}]
[{"$nulls":4},{"$f":"Tijdsintervallen!E42","v":"15:45:00"},{"$f":"IFERROR(INDEX(GebeurtenisPlanner[],MATCH(DATEVALUE(DateVal)&DagPlanning[[#This Row],[Tijd]],LookUpDateAndTime,0),3),\"\")","v":""}]
[{"$nulls":4},{"$f":"Tijdsintervallen!E43","v":"16:00:00"},{"$f":"IFERROR(INDEX(GebeurtenisPlanner[],MATCH(DATEVALUE(DateVal)&DagPlanning[[#This Row],[Tijd]],LookUpDateAndTime,0),3),\"\")","v":""}]
[{"$nulls":4},{"$f":"Tijdsintervallen!E44","v":"16:15:00"},{"$f":"IFERROR(INDEX(GebeurtenisPlanner[],MATCH(DATEVALUE(DateVal)&DagPlanning[[#This Row],[Tijd]],LookUpDateAndTime,0),3),\"\")","v":""}]
[{"$nulls":4},{"$f":"Tijdsintervallen!E45","v":"16:30:00"},{"$f":"IFERROR(INDEX(GebeurtenisPlanner[],MATCH(DATEVALUE(DateVal)&DagPlanning[[#This Row],[Tijd]],LookUpDateAndTime,0),3),\"\")","v":""}]
[{"$nulls":4},{"$f":"Tijdsintervallen!E46","v":"16:45:00"},{"$f":"IFERROR(INDEX(GebeurtenisPlanner[],MATCH(DATEVALUE(DateVal)&DagPlanning[[#This Row],[Tijd]],LookUpDateAndTime,0),3),\"\")","v":""}]
[{"$nulls":4},{"$f":"Tijdsintervallen!E47","v":"17:00:00"},{"$f":"IFERROR(INDEX(GebeurtenisPlanner[],MATCH(DATEVALUE(DateVal)&DagPlanning[[#This Row],[Tijd]],LookUpDateAndTime,0),3),\"\")","v":"Naar huis"}]
[{"$nulls":4},{"$f":"Tijdsintervallen!E48","v":"17:15:00"},{"$f":"IFERROR(INDEX(GebeurtenisPlanner[],MATCH(DATEVALUE(DateVal)&DagPlanning[[#This Row],[Tijd]],LookUpDateAndTime,0),3),\"\")","v":""}]
[{"$nulls":4},{"$f":"Tijdsintervallen!E49","v":"17:30:00"},{"$f":"IFERROR(INDEX(GebeurtenisPlanner[],MATCH(DATEVALUE(DateVal)&DagPlanning[[#This Row],[Tijd]],LookUpDateAndTime,0),3),\"\")","v":""}]
[{"$nulls":4},{"$f":"Tijdsintervallen!E50","v":"17:45:00"},{"$f":"IFERROR(INDEX(GebeurtenisPlanner[],MATCH(DATEVALUE(DateVal)&DagPlanning[[#This Row],[Tijd]],LookUpDateAndTime,0),3),\"\")","v":""}]
[{"$nulls":4},{"$f":"Tijdsintervallen!E51","v":"18:00:00"},{"$f":"IFERROR(INDEX(GebeurtenisPlanner[],MATCH(DATEVALUE(DateVal)&DagPlanning[[#This Row],[Tijd]],LookUpDateAndTime,0),3),\"\")","v":"Voetbaltraining"}]
[{"$nulls":4},{"$f":"Tijdsintervallen!E52","v":"18:15:00"},{"$f":"IFERROR(INDEX(GebeurtenisPlanner[],MATCH(DATEVALUE(DateVal)&DagPlanning[[#This Row],[Tijd]],LookUpDateAndTime,0),3),\"\")","v":""}]
[{"$nulls":4},{"$f":"Tijdsintervallen!E53","v":"18:30:00"},{"$f":"IFERROR(INDEX(GebeurtenisPlanner[],MATCH(DATEVALUE(DateVal)&DagPlanning[[#This Row],[Tijd]],LookUpDateAndTime,0),3),\"\")","v":""}]
[{"$nulls":4},{"$f":"Tijdsintervallen!E54","v":"18:45:00"},{"$f":"IFERROR(INDEX(GebeurtenisPlanner[],MATCH(DATEVALUE(DateVal)&DagPlanning[[#This Row],[Tijd]],LookUpDateAndTime,0),3),\"\")","v":""}]
[{"$nulls":4},{"$f":"Tijdsintervallen!E55","v":"19:00:00"},{"$f":"IFERROR(INDEX(GebeurtenisPlanner[],MATCH(DATEVALUE(DateVal)&DagPlanning[[#This Row],[Tijd]],LookUpDateAndTime,0),3),\"\")","v":""}]
[{"$nulls":4},{"$f":"Tijdsintervallen!E56","v":"19:15:00"},{"$f":"IFERROR(INDEX(GebeurtenisPlanner[],MATCH(DATEVALUE(DateVal)&DagPlanning[[#This Row],[Tijd]],LookUpDateAndTime,0),3),\"\")","v":""}]
[{"$nulls":4},{"$f":"Tijdsintervallen!E57","v":"19:30:00"},{"$f":"IFERROR(INDEX(GebeurtenisPlanner[],MATCH(DATEVALUE(DateVal)&DagPlanning[[#This Row],[Tijd]],LookUpDateAndTime,0),3),\"\")","v":""}]
[{"$nulls":4},{"$f":"Tijdsintervallen!E58","v":"19:45:00"},{"$f":"IFERROR(INDEX(GebeurtenisPlanner[],MATCH(DATEVALUE(DateVal)&DagPlanning[[#This Row],[Tijd]],LookUpDateAndTime,0),3),\"\")","v":""}]
[{"$nulls":4},{"$f":"Tijdsintervallen!E59","v":"20:00:00"},{"$f":"IFERROR(INDEX(GebeurtenisPlanner[],MATCH(DATEVALUE(DateVal)&DagPlanning[[#This Row],[Tijd]],LookUpDateAndTime,0),3),\"\")","v":""}]
[{"$nulls":4},{"$f":"Tijdsintervallen!E60","v":"20:15:00"},{"$f":"IFERROR(INDEX(GebeurtenisPlanner[],MATCH(DATEVALUE(DateVal)&DagPlanning[[#This Row],[Tijd]],LookUpDateAndTime,0),3),\"\")","v":""}]
[{"$nulls":4},{"$f":"Tijdsintervallen!E61","v":"20:30:00"},{"$f":"IFERROR(INDEX(GebeurtenisPlanner[],MATCH(DATEVALUE(DateVal)&DagPlanning[[#This Row],[Tijd]],LookUpDateAndTime,0),3),\"\")","v":""}]
[{"$nulls":4},{"$f":"Tijdsintervallen!E62","v":"20:45:00"},{"$f":"IFERROR(INDEX(GebeurtenisPlanner[],MATCH(DATEVALUE(DateVal)&DagPlanning[[#This Row],[Tijd]],LookUpDateAndTime,0),3),\"\")","v":""}]
[{"$nulls":4},{"$f":"Tijdsintervallen!E63","v":"21:00:00"},{"$f":"IFERROR(INDEX(GebeurtenisPlanner[],MATCH(DATEVALUE(DateVal)&DagPlanning[[#This Row],[Tijd]],LookUpDateAndTime,0),3),\"\")","v":""}]
[{"$nulls":4},{"$f":"Tijdsintervallen!E64","v":""},{"$f":"IFERROR(INDEX(GebeurtenisPlanner[],MATCH(DATEVALUE(DateVal)&DagPlanning[[#This Row],[Tijd]],LookUpDateAndTime,0),3),\"\")","v":""}]
[{"$nulls":4},{"$f":"Tijdsintervallen!E65","v":""},{"$f":"IFERROR(INDEX(GebeurtenisPlanner[],MATCH(DATEVALUE(DateVal)&DagPlanning[[#This Row],[Tijd]],LookUpDateAndTime,0),3),\"\")","v":""}]
[{"$nulls":4},{"$f":"Tijdsintervallen!E66","v":""},{"$f":"IFERROR(INDEX(GebeurtenisPlanner[],MATCH(DATEVALUE(DateVal)&DagPlanning[[#This Row],[Tijd]],LookUpDateAndTime,0),3),\"\")","v":""}]
[{"$nulls":4},{"$f":"Tijdsintervallen!E67","v":""},{"$f":"IFERROR(INDEX(GebeurtenisPlanner[],MATCH(DATEVALUE(DateVal)&DagPlanning[[#This Row],[Tijd]],LookUpDateAndTime,0),3),\"\")","v":""}]
[{"$nulls":4},{"$f":"Tijdsintervallen!E68","v":""},{"$f":"IFERROR(INDEX(GebeurtenisPlanner[],MATCH(DATEVALUE(DateVal)&DagPlanning[[#This Row],[Tijd]],LookUpDateAndTime,0),3),\"\")","v":""}]
[{"$nulls":4},{"$f":"Tijdsintervallen!E69","v":""},{"$f":"IFERROR(INDEX(GebeurtenisPlanner[],MATCH(DATEVALUE(DateVal)&DagPlanning[[#This Row],[Tijd]],LookUpDateAndTime,0),3),\"\")","v":""}]
[{"$nulls":4},{"$f":"Tijdsintervallen!E70","v":""},{"$f":"IFERROR(INDEX(GebeurtenisPlanner[],MATCH(DATEVALUE(DateVal)&DagPlanning[[#This Row],[Tijd]],LookUpDateAndTime,0),3),\"\")","v":""}]
[{"$nulls":4},{"$f":"Tijdsintervallen!E71","v":""},{"$f":"IFERROR(INDEX(GebeurtenisPlanner[],MATCH(DATEVALUE(DateVal)&DagPlanning[[#This Row],[Tijd]],LookUpDateAndTime,0),3),\"\")","v":""}]
[{"$nulls":4},{"$f":"Tijdsintervallen!E72","v":""},{"$f":"IFERROR(INDEX(GebeurtenisPlanner[],MATCH(DATEVALUE(DateVal)&DagPlanning[[#This Row],[Tijd]],LookUpDateAndTime,0),3),\"\")","v":""}]
[{"$nulls":4},{"$f":"Tijdsintervallen!E73","v":""},{"$f":"IFERROR(INDEX(GebeurtenisPlanner[],MATCH(DATEVALUE(DateVal)&DagPlanning[[#This Row],[Tijd]],LookUpDateAndTime,0),3),\"\")","v":""}]
[{"$nulls":4},{"$f":"Tijdsintervallen!E74","v":""},{"$f":"IFERROR(INDEX(GebeurtenisPlanner[],MATCH(DATEVALUE(DateVal)&DagPlanning[[#This Row],[Tijd]],LookUpDateAndTime,0),3),\"\")","v":""}]
[{"$nulls":4},{"$f":"Tijdsintervallen!E75","v":""},{"$f":"IFERROR(INDEX(GebeurtenisPlanner[],MATCH(DATEVALUE(DateVal)&DagPlanning[[#This Row],[Tijd]],LookUpDateAndTime,0),3),\"\")","v":""}]

{"sheet":"Gebeurtenisplanner","index":1,"n_rows":15,"n_cols":8,"rows_kept":15,"merged":[[1,1,4,2],[5,1,6,2],[7,1,7,2]]}
[null,"Gebeurtenisplanner"]
[null,{"$f":"DAY(DateVal)","v":6},null,null,"DATUM","TIJD","BESCHRIJVING","UNIEKE WAARDE (BEREKEND)"]
[{"$nulls":4},{"$f":"TODAY()","v":"2019-09-06"},"06:00:00","Uit bed",{"$f":"GebeurtenisPlanner[[#This Row],[DATUM]]&\"|\"&COUNTIF($E$3:E3,E3)","v":"43714|1"}]
[{"$nulls":4},{"$f":"TODAY()","v":"2019-09-06"},"06:30:00","Douche",{"$f":"GebeurtenisPlanner[[#This Row],[DATUM]]&\"|\"&COUNTIF($E$3:E4,E4)","v":"43714|2"}]
[{"$nulls":4},"2019-09-06","07:30:00","Naar het werk",{"$f":"GebeurtenisPlanner[[#This Row],[DATUM]]&\"|\"&COUNTIF($E$3:E5,E5)","v":"43714|3"}]
[null,{"$f":"TEXT(DateVal,\"dddd\")","v":"vrijdag"},null,null,"2019-09-06","08:00:00","Begin van ploegendienst",{"$f":"GebeurtenisPlanner[[#This Row],[DATUM]]&\"|\"&COUNTIF($E$3:E6,E6)","v":"43714|4"}]
[{"$nulls":4},"2019-09-06","10:00:00","Pauze",{"$f":"GebeurtenisPlanner[[#This Row],[DATUM]]&\"|\"&COUNTIF($E$3:E7,E7)","v":"43714|5"}]
[null,{"$f":"DateVal","v":"6 SEPTEMBER 2019"},null,null,"2019-09-06","12:00:00","Lunch",{"$f":"GebeurtenisPlanner[[#This Row],[DATUM]]&\"|\"&COUNTIF($E$3:E8,E8)","v":"43714|6"}]
[{"$nulls":4},"2019-09-06","13:00:00","Weer aan het werk",{"$f":"GebeurtenisPlanner[[#This Row],[DATUM]]&\"|\"&COUNTIF($E$3:E9,E9)","v":"43714|7"}]
[null,"Selecteer om tijdsintervallen te bewerken",null,null,"2019-09-06","13:30:00","Bedrijf bellen",{"$f":"GebeurtenisPlanner[[#This Row],[DATUM]]&\"|\"&COUNTIF($E$3:E10,E10)","v":"43714|8"}]
[{"$nulls":4},"2019-09-06","15:00:00","Pauze",{"$f":"GebeurtenisPlanner[[#This Row],[DATUM]]&\"|\"&COUNTIF($E$3:E11,E11)","v":"43714|9"}]
[null,"Selecteer om de Dagplanning te bekijken",null,null,"2019-09-06","17:00:00","Naar huis",{"$f":"GebeurtenisPlanner[[#This Row],[DATUM]]&\"|\"&COUNTIF($E$3:E12,E12)","v":"43714|10"}]
[{"$nulls":4},"2019-09-06","18:00:00","Voetbaltraining",{"$f":"GebeurtenisPlanner[[#This Row],[DATUM]]&\"|\"&COUNTIF($E$3:E13,E13)","v":"43714|11"}]
[{"$nulls":4},{"$f":"TODAY()+1","v":"2019-09-07"},"06:30:00","Ontbijt",{"$f":"GebeurtenisPlanner[[#This Row],[DATUM]]&\"|\"&COUNTIF($E$3:E14,E14)","v":"43715|1"}]
[{"$nulls":4},{"$f":"TODAY()+1","v":"2019-09-07"},"07:30:00","Naar het werk",{"$f":"GebeurtenisPlanner[[#This Row],[DATUM]]&\"|\"&COUNTIF($E$3:E15,E15)","v":"43715|2"}]

{"sheet":"Tijdsintervallen","index":2,"n_rows":75,"n_cols":5,"rows_kept":75,"merged":[[1,1,1,2],[9,1,9,2]]}
[null,"Tijdsintervallen"]
[null,"TIJDSPLANNING BEWERKEN",null,null,"Tijd"]
[{"$nulls":4},{"$f":"Begintijd","v":"06:00:00"}]
[null,"Begintijd","06:00:00",null,{"$f":"IFERROR(IF($E3+Increment>Eindtijd,\"\",$E3+Increment),\"\")","v":"06:15:00"}]
[{"$nulls":4},"06:30:00"]
[null,"Interval","15 MIN",null,"06:45:00"]
[{"$nulls":4},"07:00:00"]
[null,"Eindtijd","21:00:00",null,"07:15:00"]
[{"$nulls":4},"07:30:00"]
[null,"PLANNING BEKIJKEN",null,null,"07:45:00"]
[{"$nulls":4},"08:00:00"]
[null,"Selecteer om de Dagplanning te bekijken",null,null,"08:15:00"]
[{"$nulls":4},"08:30:00"]
[null,"Selecteer om een nieuwe gebeurtenis toe te voegen",null,null,"08:45:00"]
[{"$nulls":4},"09:00:00"]
[{"$nulls":4},"09:15:00"]
[{"$nulls":4},"09:30:00"]
[{"$nulls":4},"09:45:00"]
[{"$nulls":4},"10:00:00"]
[{"$nulls":4},"10:15:00"]
[{"$nulls":4},"10:30:00"]
[{"$nulls":4},"10:45:00"]
[{"$nulls":4},"11:00:00"]
[{"$nulls":4},"11:15:00"]
[{"$nulls":4},"11:30:00"]
[{"$nulls":4},"11:45:00"]
[{"$nulls":4},"12:00:00"]
[{"$nulls":4},"12:15:00"]
[{"$nulls":4},"12:30:00"]
[{"$nulls":4},"12:45:00"]
[{"$nulls":4},"13:00:00"]
[{"$nulls":4},"13:15:00"]
[{"$nulls":4},"13:30:00"]
[{"$nulls":4},"13:45:00"]
[{"$nulls":4},"14:00:00"]
[{"$nulls":4},{"$f":"IFERROR(IF($E35+Increment>Eindtijd,\"\",$E35+Increment),\"\")","v":"14:15:00"}]
[{"$nulls":4},"14:30:00"]
[{"$nulls":4},"14:45:00"]
[{"$nulls":4},"15:00:00"]
[{"$nulls":4},"15:15:00"]
[{"$nulls":4},"15:30:00"]
[{"$nulls":4},"15:45:00"]
[{"$nulls":4},"16:00:00"]
[{"$nulls":4},"16:15:00"]
[{"$nulls":4},"16:30:00"]
[{"$nulls":4},"16:45:00"]
[{"$nulls":4},"17:00:00"]
[{"$nulls":4},"17:15:00"]
[{"$nulls":4},"17:30:00"]
[{"$nulls":4},"17:45:00"]
[{"$nulls":4},"18:00:00"]
[{"$nulls":4},"18:15:00"]
[{"$nulls":4},"18:30:00"]
[{"$nulls":4},"18:45:00"]
[{"$nulls":4},"19:00:00"]
[{"$nulls":4},"19:15:00"]
[{"$nulls":4},"19:30:00"]
[{"$nulls":4},"19:45:00"]
[{"$nulls":4},"20:00:00"]
[{"$nulls":4},"20:15:00"]
[{"$nulls":4},"20:30:00"]
[{"$nulls":4},"20:45:00"]
[{"$nulls":4},"21:00:00"]
[{"$nulls":4},""]
[{"$nulls":4},""]
[{"$nulls":4},""]
[{"$nulls":4},""]
[{"$nulls":4},{"$f":"IFERROR(IF($E67+Increment>Eindtijd,\"\",$E67+Increment),\"\")","v":""}]
[{"$nulls":4},""]
[{"$nulls":4},""]
[{"$nulls":4},""]
[{"$nulls":4},""]
[{"$nulls":4},""]
[{"$nulls":4},""]
[{"$nulls":4},""]